fUSD/lending_fUSD_20260617
["ID","MTS","AMOUNT","RATE_DAILY","PERIOD"]
[425251817,1781634668000,-233.788377,0.00032877,7]
[425251815,1781634668000,-1005.808885,0.00032877,7]
[425251819,1781634668000,-1117.328852,0.00032877,7]
[425251816,1781634668000,-1741.460222,0.00032877,7]
[425251829,1781634668000,-254.628751,0.00032877,7]
[425251830,1781634668000,-2099.548395,0.00032877,7]
[425251814,1781634668000,-157.50318,0.00032877,7]
[425251825,1781634668000,-3998.243273,0.00032877,7]
[425251827,1781634668000,-517.131784,0.00032877,7]
[425251828,1781634668000,-171.185326,0.00032877,7]
[425251826,1781634668000,-233.788377,0.00032877,7]
[425251824,1781634668000,-1741.460222,0.00032877,7]
[425251820,1781634668000,-2099.548395,0.00032877,7]
[425251823,1781634668000,-1005.808885,0.00032877,7]
[425251821,1781634668000,-151.0,0.00032877,7]
[425251822,1781634668000,-157.50318,0.00032877,7]
[425251899,1781634669000,-4573.124125,0.00032877,7]
[425251895,1781634669000,-3342.977326,0.00032877,7]
[425251896,1781634669000,-151.0,0.00032877,7]
[425251894,1781634669000,-1088.650014,0.00032877,7]
[425251892,1781634669000,-750.075801,0.00032877,7]
[425251890,1781634669000,-1088.650014,0.00032877,7]
[425251891,1781634669000,-948.651354,0.00032877,7]
[425251893,1781634669000,-4573.124125,0.00032877,7]
[425251897,1781634669000,-993.360127,0.00032877,7]
[425251901,1781634669000,-3342.977326,0.00032877,7]
[425251898,1781634669000,-750.075801,0.00032877,7]
[425251900,1781634669000,-770.514652,0.00032877,7]
[425251915,1781634669000,-4573.124125,0.00032877,7]
[425251903,1781634669000,-1088.650014,0.00032877,7]
[425251907,1781634669000,-390.824516,0.00032877,7]
[425251905,1781634669000,-4573.124125,0.00032877,7]
[425251908,1781634669000,-750.075801,0.00032877,7]
[425251902,1781634669000,-3813.815129,0.00032877,7]
[425251906,1781634669000,-993.360127,0.00032877,7]
[425251904,1781634669000,-1357.542871,0.00032877,7]
[425251909,1781634669000,-770.514652,0.00032877,7]
[425251911,1781634669000,-1357.542871,0.00032877,7]
[425251912,1781634669000,-3813.815129,0.00032877,7]
[425251914,1781634669000,-390.824516,0.00032877,7]
[425251889,1781634669000,-151.0,0.00032877,7]
[425251910,1781634669000,-3342.977326,0.00032877,7]
[425251888,1781634669000,-750.075801,0.00032877,7]
[425251859,1781634669000,-152.549959,0.00032877,7]
[425251883,1781634669000,-948.651354,0.00032877,7]
[425251863,1781634669000,-1162.631104,0.00032877,7]
[425251860,1781634669000,-344.70821,0.00032877,7]
[425251861,1781634669000,-1162.631104,0.00032877,7]
[425251864,1781634669000,-152.549959,0.00032877,7]
[425251862,1781634669000,-152.549959,0.00032877,7]
[425251872,1781634669000,-3653.519003,0.00032877,7]
[425251868,1781634669000,-1194.952034,0.00032877,7]
[425251873,1781634669000,-1194.952034,0.00032877,7]
[425251866,1781634669000,-1162.631104,0.00032877,7]
[425251870,1781634669000,-1194.952034,0.00032877,7]
[425251874,1781634669000,-878.20053,0.00032877,7]
[425251865,1781634669000,-1162.631104,0.00032877,7]
[425251879,1781634669000,-948.651354,0.00032877,7]
[425251875,1781634669000,-3653.519003,0.00032877,7]
[425251867,1781634669000,-1194.952034,0.00032877,7]
[425251876,1781634669000,-151.0,0.00032877,7]
[425251869,1781634669000,-878.20053,0.00032877,7]
[425251878,1781634669000,-878.20053,0.00032877,7]
[425251884,1781634669000,-192.247984,0.00032877,7]
[425251885,1781634669000,-151.0,0.00032877,7]
[425251886,1781634669000,-151.0,0.00032877,2]
[425251887,1781634669000,-948.651354,0.00032877,7]
[425251881,1781634669000,-151.0,0.00032877,7]
[425251880,1781634669000,-151.0,0.00032877,7]
[425251882,1781634669000,-3653.519003,0.00032877,7]
[425251877,1781634669000,-3653.519003,0.00032877,7]
[425251871,1781634669000,-878.20053,0.00032877,7]
[425251923,1781634669000,-390.824516,0.00032877,7]
[425251913,1781634669000,-1088.650014,0.00032877,7]
[425251920,1781634669000,-3342.977326,0.00032877,7]
[425251950,1781634669000,-263.75643,0.00032877,7]
[425251952,1781634669000,-151.0,0.00032877,7]
[425251948,1781634669000,-151.0,0.00032877,7]
[425251951,1781634669000,-1000.536956,0.00032877,7]
[425251956,1781634669000,-238.920172,0.00032877,7]
[425251955,1781634669000,-2917.101576,0.00032877,7]
[425251953,1781634669000,-2917.101576,0.00032877,7]
[425251954,1781634669000,-238.920172,0.00032877,7]
[425251958,1781634669000,-529.999072,0.00032877,7]
[425251957,1781634669000,-1495.172888,0.00032877,7]
[425251959,1781634669000,-2917.101576,0.00032877,7]
[425251961,1781634669000,-1495.172888,0.00032877,7]
[425251949,1781634669000,-589.381274,0.00032877,7]
[425251963,1781634669000,-2917.101576,0.00032877,7]
[425251967,1781634669000,-1495.172888,0.00032877,7]
[425251969,1781634669000,-1849.434566,0.00032877,7]
[425251968,1781634669000,-529.999072,0.00032877,7]
[425251964,1781634669000,-238.920172,0.00032877,7]
[425251970,1781634669000,-1329.178592,0.00032877,7]
[425251965,1781634669000,-1495.172888,0.00032877,7]
[425251966,1781634669000,-529.999072,0.00032877,7]
[425251973,1781634669000,-1329.178592,0.00032877,7]
[425251972,1781634669000,-1849.434566,0.00032877,7]
[425251971,1781634669000,-168.02051,0.00032877,7]
[425251974,1781634669000,-168.02051,0.00032877,7]
[425251917,1781634669000,-770.514652,0.00032877,7]
[425251960,1781634669000,-238.920172,0.00032877,7]
[425251945,1781634669000,-263.75643,0.00032877,7]
[425251962,1781634669000,-529.999072,0.00032877,7]
[425251943,1781634669000,-589.381274,0.00032877,7]
[425251944,1781634669000,-179.317282,0.00032877,7]
[425251921,1781634669000,-1357.542871,0.00032877,7]
[425251919,1781634669000,-179.317282,0.00032877,7]
[425251922,1781634669000,-3813.815129,0.00032877,7]
[425251916,1781634669000,-993.360127,0.00032877,7]
[425251925,1781634669000,-770.514652,0.00032877,7]
[425251924,1781634669000,-3324.68781,0.00032877,7]
[425251928,1781634669000,-589.381274,0.00032877,7]
[425251926,1781634669000,-660.446682,0.00032877,7]
[425251927,1781634669000,-993.360127,0.00032877,7]
[425251930,1781634669000,-263.75643,0.00032877,7]
[425251932,1781634669000,-3813.815129,0.00032877,7]
[425251931,1781634669000,-1357.542871,0.00032877,7]
[425251918,1781634669000,-660.446682,0.00032877,7]
[425251934,1781634669000,-390.824516,0.00032877,7]
[425251929,1781634669000,-179.317282,0.00032877,7]
[425251941,1781634669000,-3324.68781,0.00032877,7]
[425251942,1781634669000,-660.446682,0.00032877,7]
[425251940,1781634669000,-1000.536956,0.00032877,7]
[425251946,1781634669000,-3324.68781,0.00032877,7]
[425251936,1781634669000,-660.446682,0.00032877,7]
[425251939,1781634669000,-263.75643,0.00032877,7]
[425251938,1781634669000,-179.317282,0.00032877,7]
[425251935,1781634669000,-1000.536956,0.00032877,7]
[425251937,1781634669000,-589.381274,0.00032877,7]
[425251933,1781634669000,-3324.68781,0.00032877,7]
[425251947,1781634669000,-1000.536956,0.00032877,7]
[425252007,1781634670000,-931.731581,0.00032877,7]
[425252010,1781634670000,-3101.713156,0.00032877,7]
[425252009,1781634670000,-1997.775072,0.00032877,7]
[425252005,1781634670000,-1350.019466,0.00032877,7]
[425252012,1781634670000,-2721.127501,0.00032877,7]
[425252015,1781634670000,-1350.019466,0.00032877,7]
[425252014,1781634670000,-3101.713156,0.00032877,7]
[425252008,1781634670000,-198.081191,0.00032877,7]
[425252006,1781634670000,-399.18849,0.00032877,7]
[425252017,1781634670000,-2721.127501,0.00032877,7]
[425252013,1781634670000,-1997.775072,0.00032877,7]
[425252028,1781634670000,-1661.404131,0.00032877,7]
[425252021,1781634670000,-2721.127501,0.00032877,7]
[425252027,1781634670000,-151.0,0.00032877,7]
[425252019,1781634670000,-2301.506184,0.00032877,7]
[425252020,1781634670000,-1318.157382,0.00032877,7]
[425252018,1781634670000,-1997.775072,0.00032877,7]
[425252022,1781634670000,-196.575907,0.00032877,7]
[425252024,1781634670000,-1318.157382,0.00032877,7]
[425252023,1781634670000,-151.0,0.00032877,7]
[425252026,1781634670000,-196.575907,0.00032877,7]
[425252025,1781634670000,-2721.127501,0.00032877,7]
[425252029,1781634670000,-1318.157382,0.00032877,7]
[425252036,1781634670000,-1661.404131,0.00032877,7]
[425252011,1781634670000,-1350.019466,0.00032877,7]
[425252016,1781634670000,-2301.506184,0.00032877,7]
[425252004,1781634670000,-388.413835,0.00032877,7]
[425251981,1781634670000,-692.07998,0.00032877,7]
[425252000,1781634670000,-692.07998,0.00032877,7]
[425251980,1781634670000,-1329.178592,0.00032877,7]
[425251975,1781634670000,-1329.178592,0.00032877,7]
[425251977,1781634670000,-168.02051,0.00032877,7]
[425251978,1781634670000,-3101.713156,0.00032877,7]
[425251979,1781634670000,-1849.434566,0.00032877,7]
[425251976,1781634670000,-1849.434566,0.00032877,7]
[425251982,1781634670000,-168.02051,0.00032877,7]
[425251983,1781634670000,-3101.713156,0.00032877,7]
[425251987,1781634670000,-399.18849,0.00032877,7]
[425251985,1781634670000,-151.0,0.00032877,7]
[425251991,1781634670000,-388.413835,0.00032877,7]
[425251984,1781634670000,-388.413835,0.00032877,7]
[425252001,1781634670000,-931.731581,0.00032877,7]
[425251988,1781634670000,-151.0,0.00032877,7]
[425251990,1781634670000,-198.081191,0.00032877,7]
[425251992,1781634670000,-692.07998,0.00032877,7]
[425251989,1781634670000,-931.731581,0.00032877,7]
[425251994,1781634670000,-931.731581,0.00032877,7]
[425252003,1781634670000,-1997.775072,0.00032877,7]
[425251997,1781634670000,-388.413835,0.00032877,7]
[425251998,1781634670000,-1350.019466,0.00032877,7]
[425251993,1781634670000,-399.18849,0.00032877,7]
[425251996,1781634670000,-151.0,0.00032877,7]
[425252002,1781634670000,-198.081191,0.00032877,7]
[425251999,1781634670000,-399.18849,0.00032877,7]
[425251995,1781634670000,-198.081191,0.00032877,7]
[425251986,1781634670000,-692.07998,0.00032877,7]
[425252035,1781634670000,-1318.157382,0.00032877,7]
[425252033,1781634670000,-151.0,0.00032877,7]
[425252032,1781634670000,-151.0,0.00032877,7]
[425252064,1781634670000,-500.0,0.00032877,2]
[425252060,1781634670000,-702.93891206,0.00032877,7]
[425252073,1781634670000,-404.0,0.00032877,2]
[425252070,1781634670000,-4486.0,0.00032877,5]
[425252071,1781634670000,-4585.0,0.00032877,5]
[425252075,1781634670000,-4450.0,0.00032877,5]
[425252072,1781634670000,-407.0,0.00032877,2]
[425252076,1781634670000,-735.104058,0.00032877,120]
[425252069,1781634670000,-150.0,0.00032877,2]
[425252077,1781634670000,-159.04856,0.00032877,7]
[425252067,1781634670000,-432.90113079,0.00032877,2]
[425252074,1781634670000,-4557.0,0.00032877,5]
[425252068,1781634670000,-500.0,0.00032877,2]
[425252078,1781634670000,-159.04856,0.00032877,7]
[425252081,1781634670000,-151.0,0.00032877,7]
[425252080,1781634670000,-159.04856,0.00032877,7]
[425252082,1781634670000,-151.0,0.00032877,7]
[425252083,1781634670000,-347.033666,0.00032877,7]
[425252079,1781634670000,-159.04856,0.00032877,7]
[425252085,1781634670000,-206.380469,0.00032877,7]
[425252087,1781634670000,-206.380469,0.00032877,7]
[425252084,1781634670000,-347.033666,0.00032877,7]
[425252086,1781634670000,-347.033666,0.00032877,7]
[425252090,1781634670000,-446.747049,0.00032877,7]
[425252088,1781634670000,-347.033666,0.00032877,7]
[425252061,1781634670000,-167.81627873,0.00032877,2]
[425252062,1781634670000,-500.0,0.00032877,2]
[425252089,1781634670000,-206.380469,0.00032877,7]
[425252059,1781634670000,-527.20418404,0.00032877,7]
[425252063,1781634670000,-500.0,0.00032877,2]
[425252031,1781634670000,-196.575907,0.00032877,7]
[425252040,1781634670000,-411.575731,0.00032877,7]
[425252034,1781634670000,-2301.506184,0.00032877,7]
[425252037,1781634670000,-1289.520228,0.00032877,7]
[425252038,1781634670000,-3083.666204,0.00032877,7]
[425252039,1781634670000,-196.575907,0.00032877,7]
[425252042,1781634670000,-1661.404131,0.00032877,7]
[425252052,1781634670000,-158.474782,0.00032877,7]
[425252041,1781634670000,-2301.506184,0.00032877,7]
[425252053,1781634670000,-1382.607938,0.00032877,7]
[425252043,1781634670000,-1289.520228,0.00032877,7]
[425252045,1781634670000,-158.474782,0.00032877,7]
[425252030,1781634670000,-3083.666204,0.00032877,7]
[425252044,1781634670000,-3083.666204,0.00032877,7]
[425252047,1781634670000,-1661.404131,0.00032877,7]
[425252054,1781634670000,-1289.520228,0.00032877,7]
[425252058,1781634670000,-351.46945603,0.00032877,7]
[425252056,1781634670000,-1456.594552,0.00032877,7]
[425252057,1781634670000,-175.73472801,0.00032877,7]
[425252055,1781634670000,-411.575731,0.00032877,7]
[425252065,1781634670000,-500.0,0.00032877,2]
[425252050,1781634670000,-3083.666204,0.00032877,7]
[425252048,1781634670000,-411.575731,0.00032877,7]
[425252051,1781634670000,-1456.594552,0.00032877,7]
[425252049,1781634670000,-1289.520228,0.00032877,7]
[425252046,1781634670000,-1382.607938,0.00032877,7]
[425252066,1781634670000,-500.0,0.00032877,2]
[425252133,1781634671000,-151.0,0.00032877,7]
[425252122,1781634671000,-151.0,0.00032877,7]
[425252127,1781634671000,-201.195806,0.00032877,7]
[425252131,1781634671000,-151.0,0.00032877,7]
[425252121,1781634671000,-287.441388,0.00032877,7]
[425252130,1781634671000,-151.0,0.00032877,7]
[425252124,1781634671000,-201.195806,0.00032877,7]
[425252125,1781634671000,-201.195806,0.00032877,7]
[425252123,1781634671000,-151.0,0.00032877,7]
[425252129,1781634671000,-151.0,0.00032877,7]
[425252132,1781634671000,-151.0,0.00032877,7]
[425252136,1781634671000,-437.068281,0.00032877,7]
[425252126,1781634671000,-201.195806,0.00032877,7]
[425252135,1781634671000,-437.068281,0.00032877,7]
[425252145,1781634671000,-1531.422776,0.00032877,7]
[425252134,1781634671000,-437.068281,0.00032877,7]
[425252112,1781634671000,-151.0,0.00032877,7]
[425252137,1781634671000,-437.068281,0.00032877,7]
[425252138,1781634671000,-196.51678,0.00032877,7]
[425252139,1781634671000,-196.51678,0.00032877,7]
[425252143,1781634671000,-1531.422776,0.00032877,7]
[425252140,1781634671000,-196.51678,0.00032877,7]
[425252141,1781634671000,-196.51678,0.00032877,7]
[425252144,1781634671000,-3236.065293,0.00032877,7]
[425252128,1781634671000,-206.810772,0.00032877,7]
[425252118,1781634671000,-287.441388,0.00032877,7]
[425252113,1781634671000,-366.043143,0.00032877,7]
[425252119,1781634671000,-287.441388,0.00032877,7]
[425252142,1781634671000,-151.0,0.00032877,7]
[425252093,1781634671000,-446.747049,0.00032877,7]
[425252098,1781634671000,-446.747049,0.00032877,7]
[425252092,1781634671000,-255.971314,0.00032877,7]
[425252094,1781634671000,-151.0,0.00032877,7]
[425252091,1781634671000,-206.380469,0.00032877,7]
[425252095,1781634671000,-255.971314,0.00032877,7]
[425252097,1781634671000,-151.0,0.00032877,7]
[425252096,1781634671000,-446.747049,0.00032877,7]
[425252110,1781634671000,-399.757887,0.00032877,7]
[425252100,1781634671000,-255.971314,0.00032877,7]
[425252099,1781634671000,-399.757887,0.00032877,7]
[425252102,1781634671000,-399.757887,0.00032877,7]
[425252108,1781634671000,-151.0,0.00032877,7]
[425252103,1781634671000,-255.971314,0.00032877,7]
[425252101,1781634671000,-151.0,0.00032877,7]
[425252105,1781634671000,-151.0,0.00032877,7]
[425252107,1781634671000,-151.0,0.00032877,7]
[425252106,1781634671000,-399.757887,0.00032877,7]
[425252109,1781634671000,-151.0,0.00032877,7]
[425252111,1781634671000,-151.0,0.00032877,7]
[425252114,1781634671000,-366.043143,0.00032877,7]
[425252117,1781634671000,-366.043143,0.00032877,7]
[425252115,1781634671000,-151.0,0.00032877,7]
[425252116,1781634671000,-366.043143,0.00032877,7]
[425252120,1781634671000,-287.441388,0.00032877,7]
[425252104,1781634671000,-151.0,0.00032877,7]
[425252148,1781634671000,-151.0,0.00032877,7]
[425252153,1781634671000,-433.582235,0.00032877,7]
[425252177,1781634671000,-166.053549,0.00032877,7]
[425252181,1781634671000,-3044.626251,0.00032877,7]
[425252179,1781634671000,-151.0,0.00032877,7]
[425252180,1781634671000,-375.696269,0.00032877,7]
[425252186,1781634671000,-317.681492,0.00032877,7]
[425252182,1781634671000,-166.053549,0.00032877,7]
[425252187,1781634671000,-151.0,0.00032877,7]
[425252183,1781634671000,-317.681492,0.00032877,7]
[425252185,1781634671000,-166.053549,0.00032877,7]
[425252184,1781634671000,-375.696269,0.00032877,7]
[425252189,1781634671000,-168.879474,0.00032877,7]
[425252190,1781634671000,-166.053549,0.00032877,7]
[425252193,1781634671000,-400.0,0.00032877,7]
[425252198,1781634671000,-151.0,0.00032877,7]
[425252192,1781634671000,-151.0,0.00032877,7]
[425252196,1781634671000,-151.0,0.00032877,7]
[425252197,1781634671000,-400.0,0.00032877,7]
[425252191,1781634671000,-400.0,0.00032877,7]
[425252195,1781634671000,-400.0,0.00032877,7]
[425252199,1781634671000,-151.0,0.00032877,7]
[425252194,1781634671000,-151.0,0.00032877,7]
[425252200,1781634671000,-252.556978,0.00032877,7]
[425252202,1781634671000,-2386.709718,0.00032877,7]
[425252201,1781634671000,-151.0,0.00032877,7]
[425252146,1781634671000,-3236.065293,0.00032877,7]
[425252176,1781634671000,-3044.626251,0.00032877,7]
[425252178,1781634671000,-317.681492,0.00032877,7]
[425252188,1781634671000,-375.696269,0.00032877,7]
[425252173,1781634671000,-2175.146367,0.00032877,7]
[425252171,1781634671000,-822.812215,0.00032877,7]
[425252150,1781634671000,-1531.422776,0.00032877,7]
[425252152,1781634671000,-822.812215,0.00032877,7]
[425252155,1781634671000,-2175.146367,0.00032877,7]
[425252147,1781634671000,-433.582235,0.00032877,7]
[425252154,1781634671000,-1472.884382,0.00032877,7]
[425252151,1781634671000,-3236.065293,0.00032877,7]
[425252156,1781634671000,-3191.657114,0.00032877,7]
[425252158,1781634671000,-3236.065293,0.00032877,7]
[425252157,1781634671000,-822.812215,0.00032877,7]
[425252161,1781634671000,-1472.884382,0.00032877,7]
[425252159,1781634671000,-1531.422776,0.00032877,7]
[425252163,1781634671000,-2175.146367,0.00032877,7]
[425252149,1781634671000,-3191.657114,0.00032877,7]
[425252164,1781634671000,-3191.657114,0.00032877,7]
[425252162,1781634671000,-3044.626251,0.00032877,7]
[425252172,1781634671000,-317.681492,0.00032877,7]
[425252175,1781634671000,-375.696269,0.00032877,7]
[425252174,1781634671000,-1472.884382,0.00032877,7]
[425252169,1781634671000,-3044.626251,0.00032877,7]
[425252170,1781634671000,-3191.657114,0.00032877,7]
[425252167,1781634671000,-1472.884382,0.00032877,7]
[425252166,1781634671000,-433.582235,0.00032877,7]
[425252165,1781634671000,-822.812215,0.00032877,7]
[425252160,1781634671000,-433.582235,0.00032877,7]
[425252168,1781634671000,-2175.146367,0.00032877,7]
[425252243,1781634672000,-151.0,0.00032877,7]
[425252235,1781634672000,-187.589407,0.00032877,7]
[425252241,1781634672000,-151.0,0.00032877,7]
[425252238,1781634672000,-151.0,0.00032877,7]
[425252240,1781634672000,-904.306582,0.00032877,7]
[425252239,1781634672000,-473.343205,0.00032877,7]
[425252237,1781634672000,-607.53151,0.00032877,7]
[425252233,1781634672000,-2583.349012,0.00032877,7]
[425252234,1781634672000,-473.343205,0.00032877,7]
[425252242,1781634672000,-607.53151,0.00032877,7]
[425252236,1781634672000,-850.172407,0.00032877,7]
[425252253,1781634672000,-270.157998,0.00032877,7]
[425252255,1781634672000,-476.25,0.00032877,7]
[425252246,1781634672000,-904.306582,0.00032877,7]
[425252245,1781634672000,-343.461252,0.00032877,7]
[425252248,1781634672000,-1969.845741,0.00032877,7]
[425252244,1781634672000,-1969.845741,0.00032877,7]
[425252247,1781634672000,-945.399156,0.00032877,7]
[425252249,1781634672000,-576.815484,0.00032877,7]
[425252250,1781634672000,-343.461252,0.00032877,7]
[425252251,1781634672000,-904.306582,0.00032877,7]
[425252252,1781634672000,-945.399156,0.00032877,7]
[425252256,1781634672000,-210.525398,0.00032877,7]
[425252230,1781634672000,-850.172407,0.00032877,7]
[425252254,1781634672000,-1969.845741,0.00032877,7]
[425252225,1781634672000,-850.172407,0.00032877,7]
[425252204,1781634672000,-151.0,0.00032877,7]
[425252231,1781634672000,-151.0,0.00032877,7]
[425252203,1781634672000,-252.556978,0.00032877,7]
[425252205,1781634672000,-2386.709718,0.00032877,7]
[425252206,1781634672000,-252.556978,0.00032877,7]
[425252207,1781634672000,-235.400309,0.00032877,7]
[425252208,1781634672000,-2386.709718,0.00032877,7]
[425252209,1781634672000,-252.556978,0.00032877,7]
[425252210,1781634672000,-2386.709718,0.00032877,7]
[425252212,1781634672000,-151.0,0.00032877,7]
[425252218,1781634672000,-187.589407,0.00032877,7]
[425252213,1781634672000,-151.0,0.00032877,7]
[425252214,1781634672000,-1078.708265,0.00032877,7]
[425252261,1781634672000,-151.0,0.00032877,7]
[425252215,1781634672000,-1078.708265,0.00032877,7]
[425252211,1781634672000,-151.0,0.00032877,7]
[425252216,1781634672000,-2583.349012,0.00032877,7]
[425252219,1781634672000,-850.172407,0.00032877,7]
[425252217,1781634672000,-1078.708265,0.00032877,7]
[425252220,1781634672000,-2583.349012,0.00032877,7]
[425252221,1781634672000,-1078.708265,0.00032877,7]
[425252223,1781634672000,-187.589407,0.00032877,7]
[425252229,1781634672000,-187.589407,0.00032877,7]
[425252224,1781634672000,-607.53151,0.00032877,7]
[425252227,1781634672000,-2583.349012,0.00032877,7]
[425252232,1781634672000,-607.53151,0.00032877,7]
[425252226,1781634672000,-151.0,0.00032877,7]
[425252228,1781634672000,-473.343205,0.00032877,7]
[425252259,1781634672000,-343.461252,0.00032877,7]
[425252222,1781634672000,-473.343205,0.00032877,7]
[425252260,1781634672000,-904.306582,0.00032877,7]
[425252285,1781634672000,-878.333936,0.00032877,7]
[425252293,1781634672000,-767.786436,0.00032877,7]
[425252292,1781634672000,-737.99021,0.00032877,7]
[425252297,1781634672000,-767.786436,0.00032877,7]
[425252294,1781634672000,-737.99021,0.00032877,7]
[425252296,1781634672000,-737.99021,0.00032877,7]
[425252298,1781634672000,-151.0,0.00032877,7]
[425252299,1781634672000,-151.0,0.00032877,7]
[425252302,1781634672000,-246.370928,0.00032877,7]
[425252300,1781634672000,-151.0,0.00032877,7]
[425252301,1781634672000,-151.0,0.00032877,7]
[425252306,1781634672000,-246.370928,0.00032877,7]
[425252303,1781634672000,-246.370928,0.00032877,7]
[425252304,1781634672000,-246.370928,0.00032877,7]
[425252313,1781634672000,-384.495325,0.00032877,7]
[425252309,1781634672000,-162.447589,0.00032877,7]
[425252305,1781634672000,-162.447589,0.00032877,7]
[425252312,1781634672000,-384.495325,0.00032877,7]
[425252307,1781634672000,-162.447589,0.00032877,7]
[425252310,1781634672000,-384.495325,0.00032877,7]
[425252308,1781634672000,-162.447589,0.00032877,7]
[425252311,1781634672000,-384.495325,0.00032877,7]
[425252315,1781634672000,-1084.1,0.00032883,8]
[425252314,1781634672000,-2079.94,0.00032883,8]
[425252258,1781634672000,-257.435892,0.00032877,7]
[425252290,1781634672000,-767.786436,0.00032877,7]
[425252288,1781634672000,-737.99021,0.00032877,7]
[425252295,1781634672000,-767.786436,0.00032877,7]
[425252286,1781634672000,-151.0,0.00032877,7]
[425252266,1781634672000,-257.435892,0.00032877,7]
[425252263,1781634672000,-945.399156,0.00032877,7]
[425252264,1781634672000,-476.25,0.00032877,7]
[425252257,1781634672000,-576.815484,0.00032877,7]
[425252262,1781634672000,-270.157998,0.00032877,7]
[425252265,1781634672000,-210.525398,0.00032877,7]
[425252268,1781634672000,-576.815484,0.00032877,7]
[425252284,1781634672000,-907.465672,0.00032877,7]
[425252270,1781634672000,-270.157998,0.00032877,7]
[425252280,1781634672000,-210.525398,0.00032877,7]
[425252269,1781634672000,-878.333936,0.00032877,7]
[425252272,1781634672000,-907.465672,0.00032877,7]
[425252271,1781634672000,-945.399156,0.00032877,7]
[425252267,1781634672000,-343.461252,0.00032877,7]
[425252274,1781634672000,-476.25,0.00032877,7]
[425252273,1781634672000,-210.525398,0.00032877,7]
[425252291,1781634672000,-151.0,0.00032877,7]
[425252287,1781634672000,-907.465672,0.00032877,7]
[425252283,1781634672000,-878.333936,0.00032877,7]
[425252281,1781634672000,-257.435892,0.00032877,7]
[425252289,1781634672000,-270.157998,0.00032877,7]
[425252277,1781634672000,-576.815484,0.00032877,7]
[425252276,1781634672000,-878.333936,0.00032877,7]
[425252275,1781634672000,-257.435892,0.00032877,7]
[425252278,1781634672000,-1969.845741,0.00032877,7]
[425252279,1781634672000,-907.465672,0.00032877,7]
[425252282,1781634672000,-476.25,0.00032877,7]
[425252325,1781634673000,-165.83888717,0.00033,120]
[425252326,1781634673000,-170.15679099,0.00033,120]
[425252319,1781634673000,-500.0,0.00032955,2]
[425252322,1781634673000,-165.7013292,0.00033,120]
[425252316,1781634673000,-1159.08642743,0.000329,120]
[425252320,1781634673000,-500.0,0.00032955,2]
[425252317,1781634673000,-150.0,0.00032955,2]
[425252323,1781634673000,-161.29092184,0.00033,120]
[425252324,1781634673000,-162.15693006,0.00033,120]
[425252321,1781634673000,-510.65823572,0.00032955,2]
[425252332,1781634673000,-207.53411027,0.00033,120]
[425252318,1781634673000,-291.24624232,0.00032955,2]
[425252328,1781634673000,-272.55330259,0.00033,120]
[425252338,1781634673000,-179.4136144,0.00033,120]
[425252327,1781634673000,-188.37641182,0.00033,120]
[425252329,1781634673000,-178.59196415,0.00033,120]
[425252346,1781634673000,-152.117244,0.00033,7]
[425252344,1781634673000,-1062.231083,0.00033,7]
[425252339,1781634673000,-160.29220129,0.00033,120]
[425252336,1781634673000,-3696.56965551,0.00033,2]
[425252342,1781634673000,-409.488564,0.00033,7]
[425252334,1781634673000,-281.80273509,0.00033,7]
[425252330,1781634673000,-575.569879,0.00033,14]
[425252335,1781634673000,-196.59310411,0.00033,120]
[425252333,1781634673000,-52403.17878266,0.00033,2]
[425252331,1781634673000,-1260.21680397,0.00033,120]
[425252337,1781634673000,-193.64329583,0.00033,120]